Workbook

Sheet паспорт
A1: ПАТ "УКРТРАНСГАЗ" | G1: ПАСПОРТ ФІЗИКО-ХІМІЧНИХ ПОКАЗНИКІВ ПРИРОДНОГО ГАЗУ № 622
A2: Філія "УМГ "ХАРКІВТРАНСГАЗ" | G2: переданого Криворізьким ЛВУМГ та прийнятого ПАТ "Криворіжгаз", ПАТ "Дніпропетровськгаз"ВАТ"Кіровоградгаз"
A3: Криворізьке ЛВУМГ | G3: ПАТ "КТЗ "КОНСТАР",ПАТ КТЗ "КОНСТАР"Випробувальний стенд, ПАТ ІВН "ЕНЕРГІЯ"
A4: Вимірювальна хіміко-аналітична лабораторія | G4: Маршрут № 622
A5: Свідоцтво № ПЄ 0048/2013 чинне до 16.05.2018р.
K6: по газопроводу ШДО, ШДКРІ, ЄККР | V6: за період з | X6: 2017-04-03 | Z6: по | AA6: 2017-04-30
A9: Число місяця | B9: Компонентний склад, мол. % | N9: Фізико-хімічні показники газу обчислені на основі компонентного складу, 101,325 кПа | X9: Температура точки роси за вологою (Р = 3.92 МПа), °С | Y9: Температура точки роси за вуглеводнями, °С | Z9: Вміст сірководню, г/м3 | AA9: Вміст меркаптанової сірки, г/м3 | AB9: Вміст механічних домішок, г/м3
N10: Густина абсолютна, кг/м3,при 20 °С, | O10: Температура вимірювання/згоряння при 20/25°С
B11: метан, С1 | C11: етан, С2 | D11: пропан, С3 | E11: ізо-бутан, і-С4 | F11: н-бутан, н-С4 | G11: нео-пентан, нео-С5 | H11: ізо-пентан, і-С5 | I11: н-пентан, н-С5 | J11: гексани та вищі, С6+ | K11: кисень, О2 | L11: азот, N2 | M11: діоксид вуглецю, CО2 | O11: Теплота згоряння нижча | R11: Теплота згоряння вища | U11: Число Воббе вище
O12: ккал/м³ | P12: МДж/м³ | Q12: кВт⋅год/м³ | R12: ккал/м³ | S12: МДж/м³ | T12: кВт⋅год/м³ | U12: ккал/м³ | V12: МДж/м³ | W12: кВт⋅год/м³
A13: 1 | O13: =P13*238.8459 -> 8213.910501 | P13: 34.39 | Q13: =P13/3.6 -> 9.552777778 | R13: =S13*238.8459 -> 9102.417249 | S13: 38.11 | T13: =S13/3.6 -> 10.58611111 | U13: =V13/0.0041868 -> 11908.85641 | V13: 49.86 | W13: =V13/3.6 -> 13.85 | AC13: =SUM(B13:M13)+$K$44+$N$44 -> 0
A14: 2 | O14: =P14*238.8459 -> 8213.910501 | P14: 34.39 | Q14: =P14/3.6 -> 9.552777778 | R14: =S14*238.8459 -> 9102.417249 | S14: 38.11 | T14: =S14/3.6 -> 10.58611111 | U14: =V14/0.0041868 -> 11908.85641 | V14: 49.86 | W14: =V14/3.6 -> 13.85 | AC14: 0
A15: 3 | B15: 95.4577 | C15: 2.4763 | D15: 0.7481 | E15: 0.1129 | F15: 0.1242 | G15: 0.0024 | H15: 0.0261 | I15: 0.0195 | J15: 0.0348 | K15: 0.005 | L15: 0.817 | M15: 0.1759 | N15: 0.704 | O15: 8218.687419 | P15: 34.41 | Q15: 9.558333333 | R15: 9107.194167 | S15: 38.13 | T15: 10.59166667 | U15: =V15/0.0041868 -> 11913.63332 | V15: 49.88 | W15: 13.85555556 | AC15: 99.9999 | AD15: =IF(AC15=100,"ОК"," ") -> 
A16: 4 | B16: 95.4497 | C16: 2.442 | D16: 0.7551 | E16: 0.1129 | F16: 0.1255 | G16: 0.0021 | H16: 0.0271 | I16: 0.0206 | J16: 0.0358 | K16: 0.0043 | L16: 0.8418 | M16: 0.183 | N16: 0.7042 | O16: =P16*238.8459 -> 8216.29896 | P16: 34.4 | Q16: =P16/3.6 -> 9.555555556 | R16: =S16*238.8459 -> 9104.805708 | S16: 38.12 | T16: =S16/3.6 -> 10.58888889 | U16: =V16/0.0041868 -> 11908.85641 | V16: 49.86 | W16: 13.85 | AC16: =SUM(B18:M18)+$K$44+$N$44 -> 99.9999 | AD16: =IF(AC16=100,"ОК"," ") -> 
A17: 5 | B17: 95.0307 | C17: 2.6601 | D17: 0.8075 | E17: 0.1172 | F17: 0.138 | G17: 0.0026 | H17: 0.0312 | I17: 0.0242 | J17: 0.0446 | K17: 0.0048 | L17: 0.9327 | M17: 0.2063 | N17: 0.7075 | O17: 8235.406632 | P17: 34.48 | Q17: 9.577777778 | R17: 9123.91338 | S17: 38.2 | T17: 10.61111111 | U17: 11906.46795 | V17: 49.85 | W17: 13.84722222 | AC17: =SUM(B19:M19)+$K$44+$N$44 -> 100 | AD17: ОК
A18: 6 | B18: 94.4372 | C18: 2.949 | D18: 0.9168 | E18: 0.1289 | F18: 0.1696 | G18: 0.0032 | H18: 0.0402 | I18: 0.032 | J18: 0.057 | K18: 0.0045 | L18: 1.0306 | M18: 0.2309 | N18: 0.7128 | O18: =P18*238.8459 -> 8273.621976 | P18: 34.64 | Q18: =P18/3.6 -> 9.622222222 | R18: =S18*238.8459 -> 9164.517183 | S18: 38.37 | T18: =S18/3.6 -> 10.65833333 | U18: =V18/0.0041868 -> 11913.63332 | V18: 49.88 | W18: =V18/3.6 -> 13.85555556 | X18: -18.5 | Y18: -16 | AB18: не вияв. | AC18: =SUM(B20:M20)+$K$44+$N$44 -> 0
A19: 7 | B19: 94.1996 | C19: 3.0948 | D19: 0.8861 | E19: 0.1224 | F19: 0.1625 | G19: 0.0042 | H19: 0.0406 | I19: 0.0325 | J19: 0.0729 | K19: 0.0037 | L19: 1.1368 | M19: 0.2439 | N19: 0.7143 | O19: =P19*238.8459 -> 8271.233517 | P19: 34.63 | Q19: =P19/3.6 -> 9.619444444 | R19: =S19*238.8459 -> 9164.517183 | S19: 38.37 | T19: =S19/3.6 -> 10.65833333 | U19: =V19/0.0041868 -> 11899.30257 | V19: 49.82 | W19: =V19/3.6 -> 13.83888889 | Z19: <0,0001 | AA19: 0.0006 | AC19: =SUM(B21:M21)+$K$44+$N$44 -> 0
A20: 8 | O20: =P20*238.8459 -> 8271.233517 | P20: 34.63 | Q20: =P20/3.6 -> 9.619444444 | R20: =S20*238.8459 -> 9164.517183 | S20: 38.37 | T20: =S20/3.6 -> 10.65833333 | U20: =V20/0.0041868 -> 11899.30257 | V20: 49.82 | W20: =V20/3.6 -> 13.83888889 | AC20: 0
A21: 9 | O21: 8271.233517 | P21: 34.63 | Q21: 9.619444444 | R21: 9164.517183 | S21: 38.37 | T21: 10.65833333 | U21: 11899.30257 | V21: 49.82 | W21: 13.83888889 | AC21: 0
A22: 10 | B22: 95.0498 | C22: 2.6025 | D22: 0.8335 | E22: 0.1222 | F22: 0.139 | G22: 0.0019 | H22: 0.03 | I22: 0.0226 | J22: 0.0341 | K22: 0.0047 | L22: 0.9367 | M22: 0.223 | N22: 0.7074 | O22: 8230.629714 | P22: 34.46 | Q22: 9.572222222 | R22: 9119.136462 | S22: 38.18 | T22: 10.60555556 | U22: =V22/0.0041868 -> 11899.30257 | V22: 49.82 | W22: 13.83888889 | AC22: 100 | AD22: ОК
A23: 11 | B23: 95.0961 | C23: 2.5894 | D23: 0.8247 | E23: 0.1206 | F23: 0.1372 | G23: 0.0019 | H23: 0.0292 | I23: 0.0221 | J23: 0.0334 | K23: 0.0048 | L23: 0.9211 | M23: 0.2195 | N23: 0.707 | O23: =P23*238.8459 -> 8228.241255 | P23: 34.45 | Q23: =P23/3.6 -> 9.569444444 | R23: =S23*238.8459 -> 9116.748003 | S23: 38.17 | T23: =S23/3.6 -> 10.60277778 | U23: 11899.30257 | V23: 49.82 | W23: 13.83888889 | Z23: <0,0001 | AA23: 0.0003 | AC23: 100 | AD23: ОК
A24: 12 | B24: 94.9218 | C24: 2.6424 | D24: 0.8422 | E24: 0.1206 | F24: 0.1442 | G24: 0.002 | H24: 0.0322 | I24: 0.0249 | J24: 0.0416 | K24: 0.0043 | L24: 0.9988 | M24: 0.225 | N24: 0.7085 | O24: 8233.018173 | P24: 34.47 | Q24: 9.575 | R24: 9121.524921 | S24: 38.19 | T24: 10.60833333 | U24: 11894.52565 | V24: 49.8 | W24: 13.83333333 | AC24: 100 | AD24: ОК
A25: 13 | B25: 94.8317 | C25: 2.679 | D25: 0.8539 | E25: 0.1221 | F25: 0.1472 | G25: 0.0021 | H25: 0.0332 | I25: 0.0258 | J25: 0.0448 | K25: 0.0045 | L25: 1.026 | M25: 0.2297 | N25: 0.7092 | O25: 8235.406632 | P25: 34.48 | Q25: 9.577777778 | R25: 9126.301839 | S25: 38.21 | T25: 10.61388889 | U25: 11892.13719 | V25: 49.79 | W25: 13.83055556 | X25: -18.5 | Y25: -15.8 | AC25: 100 | AD25: ОК
A26: 14 | B26: 95.7155 | C26: 2.3166 | D26: 0.7362 | E26: 0.112 | F26: 0.115 | G26: 0.0013 | H26: 0.0219 | I26: 0.0155 | J26: 0.0149 | K26: 0.0055 | L26: 0.756 | M26: 0.1896 | N26: 0.7018 | O26: 8199.579747 | P26: 34.33 | Q26: 9.536111111 | R26: 9088.086495 | S26: 38.05 | T26: 10.56944444 | U26: 11906.46795 | V26: 49.85 | W26: 13.84722222 | AC26: 100 | AD26: ОК
A27: 15 | O27: =P27*238.8459 -> 8199.579747 | P27: 34.33 | Q27: =P27/3.6 -> 9.536111111 | R27: =S27*238.8459 -> 9088.086495 | S27: 38.05 | T27: =S27/3.6 -> 10.56944444 | U27: =V27/0.0041868 -> 11906.46795 | V27: 49.85 | W27: =V27/3.6 -> 13.84722222 | AC27: 0
A28: 16 | O28: 8199.579747 | P28: 34.33 | Q28: 9.536111111 | R28: 9088.086495 | S28: 38.05 | T28: 10.56944444 | U28: 11906.46795 | V28: 49.85 | W28: 13.84722222 | AC28: 0
A29: 17 | O29: 8199.579747 | P29: 34.33 | Q29: 9.536111111 | R29: 9088.086495 | S29: 38.05 | T29: 10.56944444 | U29: 11906.46795 | V29: 49.85 | W29: 13.84722222 | AC29: 0
A30: 18 | B30: 95.4859 | C30: 2.4757 | D30: 0.7966 | E30: 0.1211 | F30: 0.1233 | G30: 0.0014 | H30: 0.0234 | I30: 0.0167 | J30: 0.0157 | K30: 0.005 | L30: 0.7305 | M30: 0.2049 | N30: 0.7039 | O30: =P30*238.8459 -> 8223.464337 | P30: 34.43 | Q30: =P30/3.6 -> 9.563888889 | R30: =S30*238.8459 -> 9111.971085 | S30: 38.15 | T30: =S30/3.6 -> 10.59722222 | U30: =V30/0.0041868 -> 11920.7987 | V30: 49.91 | W30: =V30/3.6 -> 13.86388889 | AC30: 100.0002
A31: 19 | B31: 95.652 | C31: 2.3353 | D31: 0.7434 | E31: 0.1124 | F31: 0.116 | G31: 0.0014 | H31: 0.0226 | I31: 0.0162 | J31: 0.0164 | K31: 0.0055 | L31: 0.7799 | M31: 0.199 | N31: 0.7023 | O31: 8201.968206 | P31: 34.34 | Q31: 9.538888889 | R31: 9088.086495 | S31: 38.05 | T31: 10.56944444 | U31: 11904.07949 | V31: 49.84 | W31: 13.84444444 | Z31: <0,0001 | AA31: 0.0029 | AC31: 100.0001
A32: 20 | B32: 95.5248 | C32: 2.4375 | D32: 0.7811 | E32: 0.1181 | F32: 0.1214 | G32: 0.0014 | H32: 0.0237 | I32: 0.017 | J32: 0.0175 | K32: 0.0046 | L32: 0.7459 | M32: 0.2069 | N32: 0.7035 | O32: 8216.29896 | P32: 34.4 | Q32: 9.555555556 | R32: 9107.194167 | S32: 38.13 | T32: 10.59166667 | U32: 11916.02178 | V32: 49.89 | W32: 13.85833333 | X32: -20.8 | Y32: -17.5 | AC32: 99.9999 | AD32: =IF(AC32=100,"ОК"," ") -> 
A33: 21 | B33: 95.5514 | C33: 2.428 | D33: 0.7747 | E33: 0.1177 | F33: 0.1196 | G33: 0.0014 | H33: 0.0232 | I33: 0.0166 | J33: 0.0167 | K33: 0.0052 | L33: 0.7432 | M33: 0.2024 | N33: 0.7033 | O33: 8216.29896 | P33: 34.4 | Q33: 9.555555556 | R33: 9104.805708 | S33: 38.12 | T33: 10.58888889 | U33: 11916.02178 | V33: 49.89 | W33: 13.85833333 | AC33: 100.0001
A34: 22 | O34: =P34*238.8459 -> 8216.29896 | P34: 34.4 | Q34: =P34/3.6 -> 9.555555556 | R34: =S34*238.8459 -> 9104.805708 | S34: 38.12 | T34: =S34/3.6 -> 10.58888889 | U34: =V34/0.0041868 -> 11916.02178 | V34: 49.89 | W34: =V34/3.6 -> 13.85833333 | AC34: 0
A35: 23 | O35: 8216.29896 | P35: 34.4 | Q35: 9.555555556 | R35: 9104.805708 | S35: 38.12 | T35: 10.58888889 | U35: 11916.02178 | V35: 49.89 | W35: 13.85833333 | AC35: 0 | AD35: =IF(AC35=100,"ОК"," ") -> 
A36: 24 | B36: 95.4964 | C36: 2.4443 | D36: 0.7823 | E36: 0.1195 | F36: 0.1221 | G36: 0.0014 | H36: 0.0238 | I36: 0.017 | J36: 0.016 | K36: 0.0055 | L36: 0.7639 | M36: 0.2079 | N36: 0.7037 | O36: 8216.29896 | P36: 34.4 | Q36: 9.555555556 | R36: 9104.805708 | S36: 38.12 | T36: 10.58888889 | U36: 11911.24486 | V36: 49.87 | W36: 13.85277778 | AC36: 100.0001
A37: 25 | B37: 95.4395 | C37: 2.4924 | D37: 0.8022 | E37: 0.1231 | F37: 0.1254 | G37: 0.0014 | H37: 0.0243 | I37: 0.0175 | J37: 0.0168 | K37: 0.0046 | L37: 0.7391 | M37: 0.2139 | N37: 0.7043 | O37: =P37*238.8459 -> 8225.852796 | P37: 34.44 | Q37: =P37/3.6 -> 9.566666667 | R37: =S37*238.8459 -> 9114.359544 | S37: 38.16 | T37: =S37/3.6 -> 10.6 | U37: =V37/0.0041868 -> 11918.41024 | V37: 49.9 | W37: =V37/3.6 -> 13.86111111 | X37: -17.9 | Y37: -16 | AC37: 100.0002
A38: 26 | B38: 95.4518 | C38: 2.4727 | D38: 0.7966 | E38: 0.1226 | F38: 0.1256 | G38: 0.0014 | H38: 0.0246 | I38: 0.0178 | J38: 0.0176 | K38: 0.0051 | L38: 0.7516 | M38: 0.2126 | N38: 0.7042 | O38: 8223.464337 | P38: 34.43 | Q38: 9.563888889 | R38: 9111.971085 | S38: 38.15 | T38: 10.59722222 | U38: 11916.02178 | V38: 49.89 | W38: 13.85833333 | Z38: <0,0001 | AA38: 0.0027 | AC38: 100 | AD38: ОК
A39: 27 | B39: 95.4402 | C39: 2.4721 | D39: 0.7943 | E39: 0.1222 | F39: 0.1256 | G39: 0.0014 | H39: 0.0247 | I39: 0.0178 | J39: 0.0175 | K39: 0.005 | L39: 0.7655 | M39: 0.2136 | N39: 0.7043 | O39: 8221.075878 | P39: 34.42 | Q39: 9.561111111 | R39: 9109.582626 | S39: 38.14 | T39: 10.59444444 | U39: 11913.63332 | V39: 49.88 | W39: 13.85555556 | AC39: 99.9999
A40: 28 | B40: 95.4626 | C40: 2.4576 | D40: 0.7881 | E40: 0.1213 | F40: 0.1251 | G40: 0.0014 | H40: 0.0246 | I40: 0.0178 | J40: 0.0179 | K40: 0.0053 | L40: 0.7651 | M40: 0.2131 | N40: 0.7041 | O40: 8218.687419 | P40: 34.41 | Q40: 9.558333333 | R40: 9109.582626 | S40: 38.14 | T40: 10.59444444 | U40: 11913.63332 | V40: 49.88 | W40: 13.85555556 | AB40: не вияв. | AC40: 99.9999
A41: 29 | O41: =P41*238.8459 -> 8218.687419 | P41: 34.41 | Q41: =P41/3.6 -> 9.558333333 | R41: =S41*238.8459 -> 9109.582626 | S41: 38.14 | T41: =S41/3.6 -> 10.59444444 | U41: =V41/0.0041868 -> 11913.63332 | V41: 49.88 | W41: =V41/3.6 -> 13.85555556 | AC41: 0
A42: 30 | O42: 8218.687419 | P42: 34.41 | Q42: 9.558333333 | R42: 9109.582626 | S42: 38.14 | T42: 10.59444444 | U42: 11913.63332 | V42: 49.88 | W42: 13.85555556 | AC42: 0
A43: 31 | AC43: 0
A44: Рівень одоризації відповідає чинним нормативним документам | O44: 8223.890825 | P44: 34.43178562 | Q44: 9.564384895 | R44: 9113.126166 | S44: 38.15483609 | T44: 10.59856558
H45: Середньозважене значення теплоти згоряння:
B48: Начальник Криворізького ЛВУМГ Охримчук А.О 3.05.2017р.
C49: Підрозділу підприємства, якому підпорядкована лабораторія | O49: прізвище | R49: підпис | V49: дата
B50: Завідувач лабораторії Степанова О.Г 3.05.2017р.
C51: Лабораторія, де здійснювалось вимірювання газу | O51: прізвище | R51: підпис | V51: дата
B52: Начальник служби ГВ та М Байда Ю.А. 3.05.2017р.
C53: Підрозділу, відповідального за облік газу за маршрутом | O53: прізвище | R53: підпис | V53: дата

Sheet додаток
A2: Додаток до Паспорту фізико-хімічних показників природного газу №622
A4: Область | B4: ГРС, прямий споживач | C4: Cередньозважене значення вищої теплоти згоряння
C5: МДж/м³ | D5: ккал/м³ | E5: кВт*год./м³
A6: Дніпропетровська область | B6: ГРС 6 м.Кривий Ріг | C6: 38.15408535 | D6: 9112.946854 | E6: 10.59835704
B7: ГРС Вороновиця
B8: ГРС Побережне
B9: ГРС Іллінці
B10: ГРС Тягун
B11: ГРС Оратів
B12: ГРС Осична
B13: ГРС Росоша
B14: ГРС Погребище
B15: ГРС Вороновиця
B16: ГРС Побережне
B17: ГРС Іллінці
B18: ГРС Тягун
B19: ГРС Оратів
B20: ГРС Осична
B21: ГРС Росоша
B22: ГРС Погребище
B23: ГРС Вороновиця
B24: ГРС Побережне
B25: ГРС Іллінці
B26: ГРС Тягун
B27: ГРС Оратів
B28: ГРС Осична
B29: ГРС Росоша
B30: ГРС Погребище
B31: ГРС Вороновиця
B32: ГРС Побережне
B33: ГРС Іллінці
B34: ГРС Тягун
B35: ГРС Оратів
B36: ГРС Осична
B37: ГРС Росоша
B38: ГРС Погребище
B39: ГРС с.Радіонівка | C39: 38.15520022 | D39: 9113.213137 | E39: 10.59866673
B40: ГРС с.Гейківка | C40: 38.1521757 | D40: 9112.490741 | E40: 10.59782658
B41: ПАТ "КТЗ"Констар | C41: 38.23325338 | D41: 9131.855814 | E41: 10.62034816
B42: ПАТ" ІВН ЕНЕРГІЯ" | C42: 0 | D42: 0 | E42: 0
B43: ГРС 4 м.Кривий Ріг | C43: 38.15499087 | D43: 9113.163135 | E43: 10.59860858
B44: ГРС с.Андріївка | C44: 38.15645902 | D44: 9113.513795 | E44: 10.59901639
B45: ГРС с.Зелена Балка | C45: 38.15587881 | D45: 9113.375215 | E45: 10.59885522
B46: ГРС с.Карпівка | C46: 38.15669341 | D46: 9113.569778 | E46: 10.5990815
A47: Кіровоградська область | B47: ГРС с.Кірове (Прогрес) | C47: 38.15510404 | D47: 9113.190163 | E47: 10.59864001
B48: =#REF! -> 
B49: ГРС с.Марфівка | C49: 38.15507763 | D49: 9113.183855 | E49: 10.59863267
A50: Середньозважене значення вищої теплоти згоряння по маршруту № 622 | C50: 38.15483609 | D50: 9113.126166 | E50: 10.59856558
A54: Начальник Криворізького ЛВУМГ | D54: Охримчук А.О. | F54: 3.05.2017р.
A55: Підрозділу підприємства, якому підпорядкована лабораторія | D55: прізвище | E55: підпис | F55: дата
A56: Завідувач лабораторії | D56: Степанова О.Г. | F56: 3.05.2017р.
A57: Лабораторія, де здійснювалось вимірювання газу | D57: прізвище | E57: підпис | F57: дата
A58: Начальник служби ГВ та М | D58: Байда Ю.А. | F58: 3.05.2017р.
A59: Підрозділу, відповідального за облік газу за маршрутом | D59: прізвище | E59: підпис | F59: дата

Sheet variablesList (hidden)
A1: 3 | B1: x:\gaysin | C1: 10, 11, 24, 25, 127, 128, 132, 180, 207, 215 | D1: x:\
B2: x:\Illinci
B3: x:\Talne
